Cogmind - Beta 15 @@@ ROGUE MODE // 2025.06.21 @ 20:57:22 Player: LameThyst Result: Destroyed by D-53 Grenadier with Mini Grenade Launcher Performance ------------- Evolutions (0) 0 Regions Visited (2) 400 Robots Destroyed (18) 90 Value Destroyed (417) 417 Prototype IDs (0) 0 Alien Tech Used (0) 0 Bonus (0) 0 TOTAL SCORE: 907 Bonus ------- None Cogmind --------- Core Integrity 0/250 Matter 172/300 Energy 102/250 System Corruption 0% Temperature Cool (72) Movement Walking (260) Ox2 Location -10/Mines Parts ------- > --- POWER (1) -------- Ion Engine > --- PROPULSION (2) --- Aluminum Leg > --- UTILITY (2) ------ Medium Storage Unit Improved Terrain Scanner > --- WEAPON (2) ------- Small Laser Bore Cannon > --- INVENTORY (10) --- Aluminum Leg Heat Sink Large Storage Unit Small Matter Pod (50) Structural Scanner Sensor Array Peak State ------------ > --- POWER ------------ Ion Engine > --- PROPULSION ------- Aluminum Leg Aluminum Leg > --- UTILITY ---------- Medium Storage Unit Improved Terrain Scanner > --- WEAPON ----------- Light Assault Rifle Bore Cannon > --- INVENTORY -------- Ion Engine Aluminum Leg Aluminum Leg Heat Sink Large Storage Unit Small Matter Pod Structural Scanner Sensor Array Small Laser Grenade Launcher [Rating: 14] Favorites ----------- Power Ion Engine Engine Ion Engine Power Core Light Nuclear Core Propulsion Aluminum Leg Leg Aluminum Leg Utility Small Storage Unit Device Improved Terrain Scanner Storage Small Storage Unit Weapon Small Laser Energy Gun Small Laser Ballistic Gun Assault Rifle Ballistic Cannon Bore Cannon Launcher Grenade Launcher Special Weapon Mining Laser Build | -11 -10 -10 ------- Run | Yrd Mat Min Slots Evolved . | . . . Power . | . . . Propulsion . | . . . Utility . | . . . Weapon . | . . . Parts Attached 28 | 8 18 2 Power 5 | 1 3 1 Engine 4 | 1 2 1 Core 1 | . 1 . Reactor . | . . . Propulsion 8 | 2 6 . Treads . | . . . Leg 8 | 2 6 . Wheel . | . . . Hover . | . . . Flight . | . . . Utility 6 | 2 4 . Device 4 | 1 3 . Storage 2 | 1 1 . Processor . | . . . Hackware . | . . . Protection . | . . . Artifact . | . . . Weapon 9 | 3 5 1 Energy Gun 4 | 2 2 . Energy Cannon . | . . . Ballistic Gun 2 | 1 1 . Ballistic Cannon 1 | . . 1 Launcher 1 | . 1 . Special Weapon 1 | . 1 . Impact Weapon . | . . . Slashing Weapon . | . . . Piercing Weapon . | . . . Special Melee Weapon . | . . . Unidentified Prototypes . | . . . Parts Lost 8 | . 3 5 Power 2 | . 1 1 Propulsion 3 | . 1 2 Utility . | . . . Weapon 3 | . 1 2 Highest Loss Streak 5 | . 1 5 To Critical Strikes . | . . . Average Backups 7 | 5 8 9 Power 1 | 1 1 . Propulsion 1 | 1 1 1 Utility 3 | 1 3 5 Weapon 1 | 1 1 1 Tool/Special . | . . . Unused Backups 8 | 1 4 3 Power 1 | 1 . . Propulsion 2 | . 2 . Utility 4 | . 1 3 Weapon . | . . . Tool/Special 1 | . 1 . Average Slot Usage (%) 97 | . 97 97 Engine 11 | . 11 14 Core 2 | . 2 . Leg 27 | . 27 26 Device 14 | . 14 14 Storage 14 | . 14 14 Energy Gun 14 | . 15 11 Ballistic Gun 8 | . 9 8 Launcher 1 | . 1 . Peak Build Rating 14 | 9 10 14 Average Rating 8 | 6 8 11 On Entrance 6 | . 9 10 Naked Turns . | . . . Heaviest Build 26 | 14 20 26 Greatest Support 20 | 20 20 20 Greatest Overweight (x) 1 | 1 1 1 Average Overweight (x) . | . . . Largest Inventory Capacity 10 | 8 10 10 Average Capacity 8 | 7 8 10 Most Carried 10 | 8 10 10 Average Carried 8 | 5 8 9 Final Capacity 10 | 8 10 10 Final Carried 10 | 8 10 6 Class Distribution -------------------- 83% | Mutant 16% | Scavenger-Mutant Dominant Class ---------------- Mutant | -10/Materials Scavenger-Mutant | -10/Mines Resources | -11 -10 -10 ----------- Run | Yrd Mat Min Matter Collected 621 | 331 290 . Remotely . | . . . Salvage Created 627 | 133 452 42 Parts 40 | 13 27 . Haulers Intercepted . | . . . Recyclers Shooed . | . . . Parts Field Recycled . | . . . Retrieved Matter . | . . . Parts Self-Destructed . | . . . Prevented . | . . . Kills | -11 -10 -10 ------- Run | Yrd Mat Min Combat Hostiles Destroyed 16 | . 12 4 Guns 12 | . 9 3 Cannons 1 | . . 1 AOE 3 | . 3 . Classes Destroyed 7 | 3 3 1 Worker 2 | 1 1 . Tunneler 2 | 1 1 . Recycler 1 | 1 . . Watcher 1 | . 1 . Swarmer 3 | . 3 . Grunt 9 | . 9 . Assembled 4 | . . 4 Best Kill Streak 4 | 1 4 4 Combat Bots Only 4 | . 3 4 Max Kills in Single Turn 2 | 1 2 1 Gunslinging 1 | . 1 . Exploded 2 | . 2 . Melee . | . . . Uniques/NPCs Destroyed . | . . . Combat | -11 -10 -10 -------- Run | Yrd Mat Min Hostile Shots Fired 121 | . 80 41 Missed 21 | . 15 6 Hits 100 | . 65 35 Melee 4 | . . 4 Projectile 96 | . 65 31 AOE 6 | . . 6 Part Disruptions 3 | . . 3 Damage Taken 1481 | . 843 638 Core 290 | . 146 144 Absorbed by Shields . | . . . Regen/Repaired (Parts) 12 | . 12 . Core Remaining (%) 100 | 100 . . Volleys Fired 70 | 8 46 16 Largest 2 | 2 2 2 Hottest 140 | 60 140 68 Shots Fired 115 | 15 80 20 Gun 106 | 15 75 16 Cannon 4 | . . 4 Launcher 2 | . 2 . Special 3 | . 3 . Kinetic 40 | 7 25 8 Thermal 67 | 7 48 12 Explosive 2 | . 2 . Electromagnetic 6 | 1 5 . Robot Hit Streak 9 | 5 9 4 Robot Miss Streak 4 | 3 4 3 Penetration Max . | . . . Secondary Targets 2 | . 2 . Max Gunslinging Chain 1 | . 1 . Shots Hit Robots 71 | 8 52 11 Core Hits 38 | 3 27 8 Critical Kills 1 | . . 1 Critical Parts Destroyed . | . . . Critical Strikes 1 | . . 1 Destroy 1 | . . 1 Melee Attacks . | . . . Impact . | . . . Slashing . | . . . Piercing . | . . . Sneak Attacks . | . . . Combat Hostiles . | . . . Follow-up Attacks . | . . . Damage Inflicted 1073 | 98 822 153 Guns 790 | 98 593 99 Cannons 54 | . . 54 Explosions 205 | . 205 . Melee . | . . . Ramming . | . . . Kinetic 309 | 50 181 78 Thermal 517 | 33 409 75 Explosive 205 | . 205 . Electromagnetic 42 | 15 27 . Impact . | . . . Slashing . | . . . Piercing . | . . . Highest Corruption . | . . . Average Corruption . | . . . Corruption Purged . | . . . Corruption Blocked . | . . . Overload Shots . | . . . Overflow Damage 6 | . 6 . Projectiles . | . . . Explosions 6 | . 6 . Melee . | . . . Knockbacks . | . . . Impact . | . . . Kinetic . | . . . Secondary . | . . . Self-Inflicted Damage 60 | . 60 . Shots 2 | . 2 . Rammed . | . . . Targets Rammed . | . . . Kicked . | . . . Crushed . | . . . Highest Temperature 394 | . 394 112 Average Temperature 85 | . 93 60 Received Heat Transfer 649 | . 369 280 Effects 5 | . 5 . Shutdowns 1 | . 1 . Energy Bleed 1 | . 1 . Interference 3 | . 3 . Siege Activations . | . . . Martial Activations . | . . . Shielding Activations . | . . . Robots Disrupted . | . . . Combat Hostiles . | . . . Robots Corrupted . | . . . Combat Hostiles . | . . . Parts Fried . | . . . Impact Corruptions . | . . . Robots Melted . | . . . Combat Hostiles . | . . . Parts Melted 1 | . 1 . Heat Transferred 1175 | 75 925 175 Parts Sabotaged . | . . . Parts Stolen . | . . . Parts Stripped . | . . . Power Chain Reactions . | . . . Alert | -11 -10 -10 ------- Run | Yrd Mat Min Maximum Alert Level . | . . . Low Security (%) 100 | 100 100 100 Level 1 . | . . . Level 2 . | . . . Level 3 . | . . . Level 4 . | . . . Level 5 . | . . . High Security . | . . . Max Security . | . . . Peak Influence 155 | 5 155 49 Initial 49 | . . 49 Average 31 | 1 38 25 Influence Increases 373 | 15 356 2 Destroy 0b10 Robot/C 240 | . 240 . Destroy 0b10 Robot/NC 30 | 15 15 . Destroy Leader 42 | . 42 . Disable Machine 45 | . 45 . Destroy Structure 16 | . 14 2 Influence Decreases 373 | 15 228 130 Entered New Map 79 | . . 79 Time Decay 254 | 15 208 31 Lost Part 40 | . 20 20 Squads Dispatched 3 | . 3 . Investigation 1 | . 1 . Extermination . | . . . Reinforcement 2 | . 2 . Assault . | . . . Garrison . | . . . Intercept . | . . . Searches Triggered . | . . . Construction Impeded . | . . . Haulers Reinforced . | . . . Active Scanning Responses . | . . . Cargo Convoy Interrupts . | . . . Stealth | -11 -10 -10 --------- Run | Yrd Mat Min Distress Signals 1 | . 1 . Communications Jammed . | . . . Distress Signals . | . . . Times Spotted 46 | . 21 25 Peak Tracking Total 17 | . 3 17 Tactical Retreats 2 | . . 2 Traps | -11 -10 -10 ------- Run | Yrd Mat Min Traps Triggered . | . . . Indirectly . | . . . Trap Hack Attempts . | . . . Triggered . | . . . Disarmed . | . . . Reprogrammed . | . . . Reused . | . . . Traps Extracted . | . . . Installed . | . . . Triggered . | . . . Machines | -11 -10 -10 ---------- Run | Yrd Mat Min Machines Disabled 3 | . 3 . Max in Single Turn 1 | . 1 . Machines Repaired . | . . . Machines Dismantled . | . . . Machines Sabotaged . | . . . Overloaded Fab Kills . | . . . Hacking | -11 -10 -10 --------- Run | Yrd Mat Min Machines Accessed 3 | . 3 . Terminals 2 | . 2 . Fabricators . | . . . Repair Stations 1 | . 1 . Recycling Units . | . . . Scanalyzers . | . . . Garrison Access . | . . . Total Hacks 8 | . 8 . Successful 4 | . 4 . Failed 4 | . 4 . Catastrophic . | . . . Database Lockouts . | . . . Manual . | . . . Terminals 4 | . 4 . Fabricators . | . . . Repair Stations 4 | . 4 . Recycling Units . | . . . Scanalyzers . | . . . Garrison Access . | . . . Terminal Hacks 2 | . 2 . Record 1 | . 1 . Locate Traps 1 | . 1 . Fabricator Hacks . | . . . Repair Station Hacks 2 | . 2 . Scan Component 1 | . 1 . Repair 1 | . 1 . Recycling Unit Hacks . | . . . Scanalyzer . | . . . Garrison Access Hacks . | . . . Unauthorized Hacks . | . . . Terminals . | . . . Fabricators . | . . . Repair Stations . | . . . Recycling Units . | . . . Scanalyzers . | . . . Garrison Access . | . . . Data Cores Recovered . | . . . Used . | . . . Hacking Detections 3 | . 3 . Full Trace Events 1 | . 1 . Feedback Events . | . . . Feedback Blocked . | . . . Robot Schematics Acquired . | . . . Robots Built . | . . . Authchips . | . . . Time . | . . . Total Robot Build Rating . | . . . Part Schematics Acquired . | . . . Parts Built . | . . . Authchips . | . . . Time . | . . . Total Part Build Rating . | . . . Parts Repaired 1 | . 1 . Time 26 | . 26 . Parts Recycled . | . . . Recycled Matter . | . . . Retrieved Matter . | . . . Retrieved Components . | . . . Parts Scanalyzed . | . . . Part Schematics Acquired . | . . . Parts Damaged . | . . . Bothacking | -11 -10 -10 ------------ Run | Yrd Mat Min Used RIF Installer . | . . . Robots Hacked . | . . . Non-combat . | . . . Combat . | . . . Robot Hacks Applied . | . . . Relay Couplers Released . | . . . Fabnet Peak Effective % . | . . . Robots Rewired . | . . . Allies Hacked . | . . . Hacks Repelled . | . . . Allies | -11 -10 -10 -------- Run | Yrd Mat Min Total Allies . | . . . Largest Group . | . . . Highest-Rated Group . | . . . Highest-Rated Ally . | . . . Total Orders . | . . . Ally Attacks . | . . . Total Damage . | . . . Kills . | . . . Allies Corrupted . | . . . Allies Melted . | . . . Intel | -11 -10 -10 ------- Run | Yrd Mat Min Active Infowar (turns) 818 | 58 661 99 Sensors 90 | . 90 . Terrain 389 | 58 232 99 Structural 257 | . 257 . Seismic 82 | . 82 . Robot Analysis Total . | . . . Derelict Logs Recovered . | . . . Drone Launches . | . . . Drone Recoveries . | . . . Exploration | -11 -10 -10 ------------- Run | Yrd Mat Min Turns Passed 940 | 148 693 99 Spaces Moved 541 | 87 416 38 Core 8 | 8 . . Treads . | . . . Legs 533 | 79 416 38 Wheels . | . . . Hover . | . . . Flight . | . . . Fastest Speed 50 | 50 120 120 Average Speed 120 | 119 120 123 Slowest Speed 190 | 190 190 190 Overloaded Moves . | . . . Propulsion Burnouts . | . . . Robots Hopped . | . . . Potential Cave-ins . | . . . Cave-ins Triggered . | . . . Exploration Rate (%) 19 | 7 43 8 Regions Visited 2 Branch Regions 1 Pre-discovered Areas 1 | . . 1 Known Exits Taken . | . . . Unknown Exits Taken 2 | 1 1 . Scrap Searched . | . . . Spaces Dug . | . . . Terrain Destroyed 14 | . 11 3 Melee . | . . . Projectile 3 | . . 3 AOE 11 | . 11 . Terrain Rammed . | . . . Walls Destroyed . | . . . Machines Disabled . | . . . Actions | -11 -10 -10 --------- Run | Yrd Mat Min Total 707 | 114 522 71 Wait 9 | . 1 8 Move 539 | 86 415 38 Hop . | . . . Pick Up 28 | 11 16 1 Fast Attach 7 | 5 2 . Attach 8 | 2 2 4 Detach . | . . . Swap 27 | 1 23 3 Drop 19 | 1 17 1 Fire 70 | 8 46 16 Melee . | . . . Ram . | . . . Kick . | . . . Crush . | . . . Escape Stasis . | . . . Rewire . | . . . Trap . | . . . Miscellaneous . | . . . Route ------- -11/Scrapyard -10/Materials (discovered 2 exits: [*Mat] / [*Min]) -10/Mines History --------- Turn | Location | Event 7 | -11/Scrapyard | Discovered new exit (range 15) 149 | -11/Scrapyard | Entered Materials 304 | -10/Materials | Build established: Mutant 437 | -10/Materials | Repaired Sml. Matter Pod 627 | -10/Materials | Core integrity fell below 50% 762 | -10/Materials | Discovered new exit (range 7) 803 | -10/Materials | Discovered new exit (range 15) 842 | -10/Materials | Entered Mines 843 | -10/Mines | Assembled infested the area 843 | -10/Mines | Learned location of Storage (-9) 848 | -10/Mines | Assisted by a Guerilla fighting off Assembled 939 | -10/Mines | Core integrity fell below 20% 941 | -10/Mines | Destroyed by D-53 Grenadier with Mini Grenade Launcher Last Messages --------------- 00892_ as-60943 destroyed. 00893_ GB-M8G(h) destroyed. 00896_ Dropped Sml. Laser. 00897_ Acquired Bore Cannon. 00899_ HV Slug penetrates Wall. 00899_ HV Slug penetrates as-13041. 00899_ as-13041 suffers critical hit (Destroy). 00899_ as-13041 destroyed. 00907_ as-11205 destroyed. 00907_ HV Slug penetrates Wall. 00908_ Lgt. Assault Rifle destroyed. 00914_ Grenade Launcher destroyed. 00919_ as-44103 destroyed. 00924_ Ion Engine destroyed. 00926_ Aluminum Leg destroyed. 00935_ as-21624 destroyed. 00935_ as-56394 destroyed. 00937_ as-68091 destroyed. 00938_ as-43901 destroyed. 00940_ Aluminum Leg destroyed. Map ----- +----------------------------------------------------+ | | | | | | | | | | | | | | | | | | | | | | | | | | | | | | | | | | | | | | | | | | | ???????????????#?????#### # ###????? | | ??????????????????#?## ##???? | | ???????????????????## #?????? | | ??????????????????## #????#? | | ?????????????#????# @ d #????# | | ??????????????????# d #????? | | ?????????????#????# #????# | | ????????????????#?## # #????? | | ?????????????????#?# ### %%####????? | | ?????????????#????# #?? %#???????? | | ?????????????????# #?? ###????? | | ????????????????# ##?? #??????? | | ???????????????## ###?? ??#???? | | ???????????????? #????# < ?????? | | ???????????????# #????? ??#?? | | ???????????????# ????? ??#?? | | ???????????????### ??#?# ???? | | ????????????#????## ? ????# ?????? | | ??????????????????## ??????? ???????? | | ???????????????????? ??????#?????????? | | ????????????????????# ????????????????? | | ?????????????????????#????????????????? | | ??????????????????????????????????????? | | ??????????????????????????????????????? | | ??????????????????????????????????????? | | ??????????????????????????????????????? | | ??????????????????????????????????????? | | ??????????????????????????????????????? | | ??????????????????????????????????????? | +----------------------------------------------------+ Best States ------------- Heat Dissipation 25 Energy Generation 14 Energy Capacity 250 Matter Stores 300 Matter Capacity 300 Sight Range 16 Robot Scan Range 14 Terrain Scan Range 16 Terrain Scan Density 10 Evasion (%) 55 Item Schematics ----------------- None Robot Schematics ------------------ None Fabricated ------------ Nothing Repaired ---------- Sml. Matter Pod | 20% | -10/Materials Alien Tech Used ----------------- None Achievements -------------- None Challenges ------------ None Game ------ Seed GravityFusionMatterbank Manual? 0 Play Time 00:21:38 Cumulative 9.2 hours Start 2025.06.21 @ 18:15:05 End 2025.06.21 @ 20:57:22 Sessions 2 Manual Loads 0 Difficulty Rogue Special Mode None Game No. 10 Rogue 10 Adventurer 0 Explorer 0 Win Type - Total 0 Types 0/0/0/0/0/0/0/0/0/0 Lore% 4 Gallery% 15 Achievement% 13 Wizard Run 0 Options --------- Layout 1 ASCII 0 Keyboard 0 Movement Mouse Keybinds 0 Fullscreen 2 Font 48/Smallcaps Map View 50x35 Zoom Use 0% Tactical HUD 1 Map Filters NONE Filters NONE Steam 0 RUN: 1d603390-9c0e-46a8-a870-f56d76895acb